bitfinex/quotes_ETHUSD_20240711
["timestamp","ask_amount","ask_price","bid_price","bid_amount"]
[1720699633384,3.17431,3150.3,3149.3,0.32388503]
[1720699633585,1.09951838,3150.2,3149.3,0.32388503]
[1720699633914,3.17442,3150.2,3149.3,0.32388503]
[1720699634114,3.1745,3150.1,3149.3,0.32388503]
[1720699634413,6.34908,3150.1,3149.1,0.06349676]
[1720699634574,6.34908,3150.1,3149.0,8.17215]
[1720699634775,3.17476,3149.9,3149.0,4.9966]
[1720699635262,3.17476,3149.9,3149.0,2.3916]
[1720699635263,3.17501,3149.6,3149.0,2.3916]
[1720699636976,3.809283,3150.2,3149.0,2.45510643]
[1720699637201,3.809283,3150.2,3149.1,3.42095064]
[1720699637202,4.27420331,3150.1,3149.1,3.42095064]
[1720699637391,1.09961331,3150.0,3149.1,6.59639064]
[1720699637717,3.17459,3150.1,3149.1,6.59640064]
[1720699637889,3.1746,3150.0,3149.1,6.59640064]
[1720699638095,3.1746,3150.0,3149.1,3.42095064]
[1720699638401,1.09958657,3149.9,3149.1,3.42095064]
[1720699638581,3.1746,3150.0,3149.1,3.42095064]
[1720699638778,1.09958736,3149.9,3149.1,3.42095064]
[1720699639005,3.1746,3150.0,3149.1,3.42095064]
[1720699639317,1.09959232,3149.9,3149.1,3.42095064]
[1720699639487,6.34927,3150.0,3149.1,3.42095064]
[1720699639691,1.09959244,3149.9,3149.1,3.42095064]
[1720699639890,1.09959244,3149.8,3149.0,4.9966]
[1720699640094,3.17506,3149.6,3148.8,1.64240271]
[1720699640479,1.09962398,3149.5,3148.8,1.64240271]
[1720699640687,3.17488,3149.8,3148.8,1.64240271]
[1720699640912,1.09961454,3149.7,3148.8,1.64240271]
[1720699641111,1.09961454,3149.6,3148.8,2.62998098]
[1720699641326,1.09961454,3149.8,3149.0,5.78054]
[1720699641531,1.09961454,3149.7,3149.0,5.84403942]
[1720699641736,3.17451,3150.1,3149.1,3.1755]
[1720699641923,0.634873,3150.2,3149.2,4.14084114]
[1720699641924,1.09953103,3150.0,3149.2,4.14084114]
[1720699642098,3.17441,3150.2,3149.3,0.06349652]
[1720699642099,1.09953103,3149.9,3149.3,0.06349652]
[1720699642300,3.17406,3150.6,3150.5,0.2]
[1720699642497,4.27345531,3150.6,3150.5,0.2]
[1720699643099,1.09939531,3150.6,3150.5,0.2]
[1720699643303,4.70070884,3150.6,3150.5,0.2]
[1720699645350,1.52668332,3150.6,3150.5,0.2]
[1720699645688,4.70067332,3150.6,3150.5,0.2]
[1720699646586,4.70067332,3150.6,3150.5,0.4]
[1720699648717,3.60131353,3150.6,3150.5,0.4]
[1720699648824,4.70067249,3150.6,3150.5,0.4]
[1720699652135,3.60131353,3150.6,3150.5,0.4]
[1720699652297,4.70066677,3150.6,3150.5,0.4]
[1720699652821,1.52667677,3150.6,3150.5,0.4]
[1720699653026,1.09935324,3150.6,3150.5,0.4]
[1720699655651,1.09933825,3150.6,3150.5,0.4]
[1720699658962,1.09933505,3150.6,3150.5,0.4]
[1720699659322,3.17384,3150.8,3150.5,0.4]
[1720699659620,2.76161079,3150.7,3150.5,0.4]
[1720699659833,1.09932831,3150.6,3150.5,0.4]
[1720699661308,1.09933262,3150.6,3150.5,0.4]
[1720699661522,1.09933344,3150.6,3150.5,0.4]
[1720699661831,2.76338505,3150.6,3150.5,0.4]
[1720699662509,2.76363036,3150.6,3150.5,0.4]
[1720699662853,3.4167319,3150.6,3150.5,0.4]
[1720699665912,0.65310154,3150.6,3150.5,0.4]
[1720699666109,1.75234576,3150.6,3150.5,0.4]
[1720699666804,3.41672519,3150.6,3150.5,0.4]
[1720699668529,7.30702719,3150.6,3150.5,0.4]
[1720699668737,12.47827251,3150.6,3150.5,0.4]
[1720699668939,10.48101719,3150.6,3150.5,0.4]
[1720699669542,10.41782649,3150.6,3150.5,0.4]
[1720699670056,4.27343495,3150.6,3150.5,0.4]
[1720699670572,2.76395979,3150.6,3150.5,0.4]
[1720699672680,1.09944495,3150.6,3150.5,0.4]
[1720699672902,1.09932181,3150.6,3150.5,0.4]
[1720699676182,5.17220861,3150.8,3150.5,0.4]
[1720699676380,1.6165496,3150.7,3150.5,0.4]
[1720699676551,1.09932874,3150.6,3149.9,5.47469]
[1720699676744,2.76465957,3150.5,3149.9,5.47469]
[1720699676947,1.09932874,3150.4,3149.9,5.47469]
[1720699678098,1.09932874,3150.4,3149.9,2.3]
[1720699678247,2.76465957,3150.4,3149.9,3.042889]
[1720699678451,1.09932874,3150.3,3149.9,6.217569]
[1720699679696,1.09931675,3150.2,3149.9,6.217569]
[1720699679863,1.09931675,3150.1,3149.9,6.217569]
[1720699680062,1.66543313,3150.5,3149.9,6.217569]
[1720699680063,1.09931675,3150.0,3149.9,6.217569]
[1720699680683,1.09931675,3150.0,3149.9,12.566969]
[1720699680997,1.66543313,3151.1,3150.5,2.5155]
[1720699681290,5.50451638,3151.7,3150.6,3.42547]
[1720699681291,1.09909509,3151.0,3150.6,3.42547]
[1720699681496,1.66543313,3151.2,3150.6,3.42547]
[1720699681497,1.09909509,3150.9,3150.6,6.34783]
[1720699681664,1.09909509,3150.8,3150.6,6.34783]
[1720699681867,1.09909509,3150.7,3150.6,3.17391]
[1720699682299,1.66501451,3151.3,3150.9,3.17368]
[1720699682455,1.098969,3151.2,3151.1,3.17346]
[1720699682658,1.098969,3151.2,3151.1,8.62535]
[1720699682956,1.66501451,3151.8,3151.2,3.1733]
[1720699683176,1.09887083,3151.7,3151.1,5.45186]
[1720699683386,1.09887083,3151.7,3151.1,2.2784]
[1720699683387,1.09887083,3151.6,3151.1,2.2784]
[1720699683581,2.76388534,3151.6,3151.1,2.2784]
[1720699683893,1.09887083,3151.5,3151.1,2.2784]
[1720699684277,1.66501451,3151.7,3151.1,2.2784]
[1720699684278,1.09887083,3151.6,3151.1,2.2784]
[1720699685584,1.09894529,3151.5,3151.1,2.2784]
[1720699685778,1.09894535,3151.4,3151.1,3.140958]
[1720699686007,1.09894535,3151.3,3151.1,3.140958]
[1720699686192,1.66326613,3151.7,3151.1,3.140958]
[1720699686397,1.09894261,3151.6,3151.1,6.314378]
[1720699686596,1.09894261,3151.5,3151.2,0.3876362]
[1720699686820,1.66326613,3151.9,3151.2,3.5610262]
[1720699686982,1.09885901,3151.8,3151.2,3.5610262]
[1720699687307,1.09885901,3151.7,3151.2,0.3876362]
[1720699687516,1.09885901,3151.6,3151.2,0.3876362]
[1720699687803,1.09885901,3151.5,3151.2,0.3876362]
[1720699688016,1.09888503,3151.8,3151.3,0.67020842]
[1720699688179,1.09886303,3151.7,3151.3,0.67020842]
[1720699688379,1.66326613,3152.0,3151.3,0.67020842]
[1720699688599,1.09885809,3151.9,3151.3,0.67020842]
[1720699688801,1.09885809,3151.8,3151.3,0.67020842]
[1720699689018,3.17253,3152.1,3151.4,0.42312246]
[1720699689325,1.09885837,3152.0,3151.2,3.5610162]
[1720699689517,2.76071227,3152.0,3151.2,3.5610162]
[1720699689677,1.09885544,3151.9,3151.2,3.5610162]
[1720699690404,1.09885544,3152.0,3151.4,3.17314]
[1720699690710,1.66185683,3152.3,3151.5,0.0634543]
[1720699690908,3.17222,3152.4,3151.5,0.0634543]
[1720699690909,1.0987306,3152.2,3151.5,0.0634543]
[1720699691118,1.0987306,3152.1,3151.5,0.70443473]
[1720699691319,7.4434006,3152.3,3151.5,0.64098043]
[1720699691484,7.4434006,3152.3,3151.2,2.3416362]
[1720699691485,3.17249,3152.1,3151.2,2.3416362]
[1720699691833,1.0987306,3152.0,3151.2,0.3876362]
[1720699692111,1.0987306,3152.0,3151.2,3.5610062]
[1720699692359,6.34504,3152.1,3151.2,0.3876362]
[1720699692623,1.09882511,3152.0,3151.2,0.3876362]
[1720699692825,1.09882511,3152.0,3150.7,5.9377]
[1720699692826,3.17284,3151.8,3150.7,5.9377]
[1720699692999,4.27177511,3151.7,3150.7,5.9377]
[1720699693196,1.09882511,3151.6,3150.7,5.9377]
[1720699693411,1.16221654,3151.6,3150.7,2.9639]
[1720699693588,1.09882511,3151.5,3150.7,0.6]
[1720699693919,1.09882511,3151.5,3150.7,1.289403]
[1720699694122,4.27193511,3151.5,3150.7,1.289403]
[1720699694320,1.09882511,3151.4,3150.7,1.289403]
[1720699695096,4.27202511,3151.4,3150.7,1.289403]
[1720699695317,1.09906146,3151.3,3150.7,0.6]
[1720699695509,3.17305,3151.6,3150.7,0.6]
[1720699695740,1.09906741,3151.5,3150.8,3.23718154]
[1720699695915,1.09906741,3151.4,3150.9,3.17361]
[1720699696084,3.17271,3151.9,3150.9,3.17361]
[1720699696085,3.17271,3151.9,3151.0,3.17359]
[1720699696427,1.0989349,3151.8,3151.0,3.17359]
[1720699696636,4.62153231,3151.9,3151.0,3.17359]
[1720699696637,1.0989349,3151.7,3151.0,3.17359]
[1720699696929,3.17271,3151.9,3151.0,3.17359]
[1720699697136,1.09889038,3151.8,3151.0,3.17359]
[1720699697316,1.09889038,3151.7,3151.0,3.17359]
[1720699697494,1.09889038,3151.8,3151.1,0.555419]
[1720699697933,1.09889038,3151.8,3151.2,0.06346323]
[1720699698115,1.09889038,3151.9,3151.0,3.17353]
[1720699698427,1.09889038,3151.8,3151.0,3.17353]
[1720699698603,1.09889694,3151.7,3151.0,3.17353]
[1720699698805,1.6606131,3152.2,3151.1,0.61887544]
[1720699698993,3.17233,3152.3,3151.2,3.17329]
[1720699699324,4.27123953,3152.2,3151.3,3.23674654]
[1720699699633,1.09882953,3152.1,3151.3,3.23674654]
[1720699699804,1.09882953,3152.0,3151.3,3.23674654]
[1720699700009,1.09882953,3151.9,3151.3,3.23674654]
[1720699700208,3.17233,3152.3,3151.3,3.87775019]
[1720699700410,1.09877804,3152.2,3151.3,3.87775019]
[1720699700610,1.09877804,3152.1,3151.3,3.87775019]
[1720699700813,1.09877804,3152.2,3151.4,3.17318]
[1720699701014,1.09877804,3152.3,3151.5,2.2858]
[1720699701344,1.09877804,3152.2,3151.5,2.2858]
[1720699701643,1.09877804,3152.1,3151.5,2.2858]
[1720699701820,1.09877804,3152.0,3151.5,2.2858]
[1720699702013,1.09877804,3152.1,3151.5,2.2858]
[1720699702451,1.09881709,3152.0,3151.5,2.2858]
[1720699702751,3.17243,3152.2,3151.5,2.2858]
[1720699702908,1.09879253,3152.1,3151.5,2.2858]
[1720699703107,1.09879253,3152.0,3151.5,2.2858]
[1720699703336,3.1725,3152.1,3151.2,3.17329]
[1720699703523,1.09879685,3152.0,3151.3,0.57266454]
[1720699703734,1.09879685,3151.9,3151.3,0.57266454]
[1720699703929,1.09879685,3152.0,3151.3,0.57266454]
[1720699705525,1.09879685,3152.0,3151.3,0.63612105]
[1720699705722,1.09879685,3152.1,3151.3,3.80940105]
[1720699705997,1.09878282,3152.0,3151.4,0.38094011]
[1720699706256,3.17238,3152.2,3151.4,0.38094011]
[1720699706462,1.0987833,3152.1,3151.5,0.06345647]
[1720699706745,3.17219,3152.4,3151.5,3.23653647]
[1720699706909,1.09864377,3152.3,3151.6,0.36174766]
[1720699707109,1.09864377,3152.2,3151.7,0.06345161]
[1720699707305,1.09864377,3152.3,3151.6,0.42519903]
[1720699707946,1.09864377,3152.3,3151.7,2.4119]
[1720699708115,1.09864377,3152.5,3151.8,0.06344701]
[1720699708314,1.09864377,3152.6,3151.8,0.7411779]
[1720699708518,1.09864377,3152.5,3152.0,3.17257]
[1720699708756,1.09864377,3152.4,3152.0,5.19001237]
[1720699708968,3.17142,3153.2,3152.1,3.17247]
[1720699709168,1.09850874,3153.1,3152.2,3.23580854]
[1720699709327,1.09848643,3153.0,3152.2,3.80847308]
[1720699709529,1.09848643,3152.9,3152.2,3.74503454]
[1720699709842,1.09848643,3152.8,3152.2,3.74503454]
[1720699710006,1.09848643,3153.0,3152.2,3.74503454]
[1720699710212,1.09848643,3152.9,3152.3,3.17221]
[1720699710409,1.09848625,3153.1,3152.4,0.38094011]
[1720699710617,1.09838071,3153.0,3152.5,5.43058]
[1720699710847,1.09838071,3152.9,3152.5,2.2585]
[1720699711066,1.09838071,3153.0,3152.5,5.43055]
[1720699711358,1.09848625,3153.1,3152.5,5.43055]
[1720699711660,1.09848625,3153.1,3152.5,5.79229766]
[1720699713711,1.09848625,3153.1,3152.6,0.06343258]
[1720699713954,1.09848625,3153.1,3152.7,3.17188]
[1720699715055,3.17093,3153.7,3152.7,3.17188]
[1720699715261,1.09831963,3153.6,3152.7,3.17188]
[1720699715415,1.09831963,3153.5,3152.7,3.84961089]
[1720699715612,3.17093,3153.7,3152.7,3.84961089]
[1720699715872,1.09831682,3153.6,3152.7,7.02142089]
[1720699716053,1.09824842,3153.5,3152.8,3.17176]
[1720699716359,6.34188,3153.7,3152.8,3.17176]
[1720699716516,1.09829137,3153.6,3152.8,3.74442454]
[1720699716712,6.34187,3153.7,3152.8,3.74442454]
[1720699716959,1.09829403,3153.6,3152.8,3.74442454]
[1720699717158,6.34187,3153.7,3152.8,3.74442454]
[1720699717518,6.00889,3153.7,3152.8,3.74442454]
[1720699717719,2.83793,3153.7,3152.9,0.38094011]
[1720699717914,2.83793,3153.7,3153.0,2.4469]
[1720699718123,2.50493,3153.7,3153.0,2.4469]
[1720699719063,3.17059,3154.0,3153.0,5.61847]
[1720699719437,4.26897205,3153.9,3153.0,5.61847]
[1720699719532,3.17059,3154.0,3153.1,0.98052313]
[1720699719724,1.09824016,3153.9,3153.1,0.98052313]
[1720699719953,3.17059,3154.0,3153.1,0.98052313]
[1720699720569,3.17059,3154.0,3153.1,4.15199313]
[1720699720767,3.17038,3154.2,3153.2,3.83117931]
[1720699720927,1.09817264,3154.1,3153.4,3.17112]
[1720699721117,3.17017,3154.4,3153.4,3.17112]
[1720699721594,3.17017,3154.4,3153.5,2.4469]
[1720699721969,3.1704,3154.2,3153.5,2.4469]
[1720699722150,6.3404,3154.4,3153.5,3.325827]
[1720699722536,3.17029,3154.3,3153.5,3.325827]
[1720699723363,3.17038,3154.2,3153.5,3.325827]
[1720699723567,7.3,3154.6,3153.9,3.17061]
[1720699723717,3.16984,3154.8,3154.0,0.317061]
[1720699724578,0.15459858,3155.1,3153.6,2.3653]
[1720699724579,3.17031,3154.3,3153.6,2.3653]
[1720699724777,3.17007,3154.5,3153.6,2.3653]
[1720699724923,3.17028,3154.3,3153.6,2.3653]
[1720699725121,3.17041,3154.2,3153.3,3.17127]
[1720699725595,3.17028,3154.3,3153.3,6.34247]
[1720699725865,3.16973,3154.9,3154.0,3.17057]
[1720699726026,6.33947,3154.9,3154.0,3.17057]
[1720699726243,5.53183,3155.1,3154.0,3.23397321]
[1720699726448,3.16953,3155.1,3154.1,3.17044]
[1720699726655,3.16957,3155.0,3154.2,0.634101]
[1720699726869,3.16969,3154.9,3154.2,0.634101]
[1720699727049,3.16969,3154.9,3153.8,5.54211]
[1720699727050,3.16969,3154.9,3154.0,3.17049]
[1720699727229,3.16969,3154.9,3154.1,3.17044]
[1720699727626,3.16953,3155.1,3154.2,0.06340039]
[1720699727874,3.16953,3155.1,3154.3,2.2835]
[1720699728280,3.16888,3155.7,3154.3,2.2835]
[1720699728281,2.3037,3156.0,3154.3,2.34689908]
[1720699728499,0.66113455,3156.1,3155.0,3.16948]
[1720699728500,3.16853,3156.1,3155.0,3.16948]
[1720699728656,3.16867,3155.9,3154.9,2.2835]
[1720699728871,3.16884,3155.8,3154.9,2.2835]
[1720699729232,5.47205,3156.3,3155.0,3.23293468]
[1720699729438,3.16846,3156.1,3155.0,6.33904]
[1720699729649,3.16846,3156.1,3155.1,0.862254]
[1720699730050,3.16823,3156.4,3155.2,4.2086]
[1720699730250,3.1683,3156.3,3155.3,3.16926]
[1720699730461,6.33648,3156.4,3155.4,3.961936]
[1720699730774,3.16836,3156.2,3155.2,2.2546]
[1720699730957,3.16829,3156.3,3155.2,5.42387]
[1720699731167,3.16812,3156.5,3155.5,3.16905]
[1720699731471,3.16792,3156.7,3155.7,3.16883]
[1720699731771,0.06339143,3156.7,3155.3,3.71923]
[1720699731971,3.16817,3156.4,3155.3,4.8500592]
[1720699732535,3.16817,3156.4,3155.3,4.8500192]
[1720699732910,3.16817,3156.4,3155.3,1.6808292]
[1720699733042,3.16817,3156.4,3155.4,3.16916]
[1720699733448,3.16817,3156.4,3155.4,6.33825]
[1720699733652,3.16817,3156.4,3155.4,4.031344]
[1720699734475,3.16817,3156.4,3155.4,0.862254]
[1720699734476,0.06339143,3156.4,3155.4,0.862254]
[1720699734647,3.16839,3156.2,3155.2,2.2546]
[1720699734973,3.16839,3156.2,3155.2,5.42396]
[1720699735194,3.16839,3156.2,3155.2,2.2546]
[1720699735489,3.16864,3156.0,3155.2,2.2546]
[1720699735962,3.16821,3156.4,3155.3,3.16926]
[1720699736236,10.72370914,3156.6,3155.4,0.542386]
[1720699736487,7.3,3156.6,3155.9,3.16858]
[1720699736638,3.16733,3157.3,3156.1,3.1684]
[1720699737330,3.16733,3157.3,3156.0,7.60893]
[1720699737331,3.16737,3157.2,3156.0,7.60893]
[1720699737536,3.16738,3157.2,3156.2,3.16827]
[1720699737978,3.16738,3157.2,3156.3,3.16819]
[1720699740178,3.16738,3157.2,3156.2,3.1683]
[1720699740537,3.16747,3157.1,3156.2,3.1683]
[1720699740876,0.06339143,3157.0,3156.1,0.760893]
[1720699741173,3.16767,3156.9,3156.0,2.4864]
[1720699741362,3.23116143,3156.8,3156.0,2.4864]
[1720699741550,3.16808,3156.5,3155.6,2.4282]
[1720699742005,3.16808,3156.5,3155.6,5.59716]
[1720699742324,3.1679,3156.7,3155.6,5.59716]
[1720699742325,6.33545,3156.9,3155.8,3.16876]
[1720699742619,3.16771,3156.9,3155.9,0.06336416]
[1720699742824,3.16778,3156.8,3155.8,3.16876]
[1720699743027,3.16778,3156.8,3155.8,3.23212352]
[1720699743331,3.16791,3156.7,3155.8,3.16876]
[1720699743622,3.16791,3156.7,3155.9,0.3728476]
[1720699743833,3.16777,3156.8,3156.0,0.55]
[1720699744183,3.16777,3156.8,3155.9,3.16865]
[1720699744389,3.16777,3156.8,3156.0,0.55]
[1720699744582,3.16777,3156.8,3156.0,0.976865]
[1720699744783,3.16777,3156.8,3156.0,0.55]
[1720699745025,3.16777,3156.8,3155.8,3.71875]
[1720699745588,3.16804,3156.6,3155.7,0.559716]
[1720699745785,3.16822,3156.4,3155.6,2.4282]
[1720699746018,3.16827,3156.3,3155.6,2.4282]
[1720699746318,3.16822,3156.4,3155.6,2.4282]
[1720699746319,3.16824,3156.4,3155.6,2.4282]
[1720699746528,0.316824,3156.4,3155.4,1.64240271]
[1720699746748,0.06339143,3156.4,3155.4,1.64240271]
[1720699747044,3.16888,3155.7,3154.8,0.4]
[1720699747686,3.16888,3155.7,3154.8,3.56975]
[1720699748687,3.16912,3155.5,3154.8,0.4]
[1720699748905,3.169,3155.6,3154.9,0.28422]
[1720699749305,3.169,3155.6,3154.8,0.4]
[1720699749540,3.16917,3155.4,3154.8,0.4]
[1720699750590,3.169,3155.6,3154.8,0.4]
[1720699752038,6.33805,3155.6,3154.8,0.4]
[1720699752354,3.169,3155.6,3154.8,0.4]
[1720699752519,6.33805,3155.6,3154.8,1.001216]
[1720699752697,3.169,3155.6,3154.8,1.001216]
[1720699752894,3.16915,3155.5,3154.8,1.001216]
[1720699753300,3.16914,3155.5,3154.8,1.001216]
[1720699754866,3.16879,3155.8,3154.8,4.170896]
[1720699755064,3.16879,3155.8,3154.9,1.2113096]
[1720699755438,3.16879,3155.8,3154.9,4.3809196]
[1720699755644,3.16861,3156.0,3155.0,3.16954]
[1720699755806,3.16842,3156.2,3155.2,3.16934]
[1720699756009,3.16847,3156.1,3155.2,3.16934]
[1720699756222,3.16847,3156.1,3155.3,0.44164902]
[1720699756423,7.3,3156.4,3155.5,2.261]
[1720699756617,3.16791,3156.7,3155.5,2.261]
[1720699756618,3.16791,3156.7,3155.6,0.06337004]
[1720699756845,3.16791,3156.7,3155.6,3.23232004]
[1720699756846,4.26528115,3156.6,3155.6,3.23232004]
[1720699757156,1.09725115,3156.5,3155.6,3.23232004]
[1720699757450,3.16784,3156.8,3155.7,3.718192]
[1720699757746,1.09724155,3156.7,3155.8,3.23210507]
[1720699758041,1.09724155,3156.6,3155.8,3.23210507]
[1720699758262,1.09724155,3156.5,3155.7,3.78155767]
[1720699758408,1.09724155,3156.4,3155.7,3.78155767]
[1720699758609,6.33542,3156.9,3155.8,3.63624534]
[1720699758804,1.09722084,3156.8,3155.8,3.63624534]
[1720699759057,1.09715022,3156.7,3156.0,3.16849]
[1720699759253,7.3,3157.0,3156.0,6.40033819]
[1720699759459,1.09708191,3156.9,3156.1,3.16841]
[1720699759616,7.3,3157.0,3156.2,0.64002582]
[1720699759812,3.16751,3157.1,3156.2,0.64002582]
[1720699760042,1.09705517,3157.0,3156.2,0.64002582]
[1720699760315,3.16751,3157.1,3156.2,3.80838582]
[1720699760646,1.09704817,3157.0,3156.3,2.2603]
[1720699760873,3.16742,3157.2,3156.4,0.39955571]
[1720699761158,1.09701464,3157.1,3156.4,0.39955571]
[1720699761459,3.16746,3157.1,3156.4,0.39955571]
[1720699761616,3.1673,3157.3,3156.4,0.39955571]
[1720699761818,4.2644331,3157.2,3156.5,0.26598557]
[1720699762018,1.0970131,3157.1,3156.5,0.26598557]
[1720699762261,3.1673,3157.3,3156.5,0.26598557]
[1720699762463,1.0970394,3157.2,3156.5,0.26598557]
[1720699762650,1.0970394,3157.1,3156.5,0.26598557]
[1720699762849,3.1673,3157.3,3156.5,0.26598557]
[1720699763055,4.26440702,3157.2,3156.6,0.06335423]
[1720699763224,3.16739,3157.2,3156.5,0.26598557]
[1720699763423,3.16726,3157.3,3156.6,0.38336913]
[1720699763626,1.09700643,3157.2,3156.6,0.38336913]
[1720699763946,6.33424,3157.5,3156.6,0.44669496]
[1720699764256,1.09695069,3157.4,3156.6,0.38336913]
[1720699764468,1.09695069,3157.3,3156.6,0.38336913]
[1720699764638,3.16727,3157.3,3156.6,0.38336913]
[1720699765143,1.09699377,3157.2,3156.6,0.38336913]
[1720699765346,3.16727,3157.3,3156.6,0.38336913]
[1720699765540,1.09702696,3157.2,3156.6,0.38336913]
[1720699765873,3.16737,3157.2,3156.6,0.38336913]
[1720699766032,3.16737,3157.2,3156.5,0.26598557]
[1720699767024,3.16713,3157.5,3156.5,3.43398557]
[1720699767255,4.26417289,3157.4,3156.5,3.43398557]
[1720699767461,1.09696968,3157.3,3156.5,3.43398557]
[1720699767663,3.16716,3157.4,3156.5,3.43398557]
[1720699767824,3.16716,3157.4,3156.6,0.34339856]
[1720699768426,1.16039457,3157.3,3156.5,0.26598557]
[1720699768622,1.09700314,3157.2,3156.5,0.26598557]
[1720699768867,3.16743,3157.2,3156.5,0.26598557]
[1720699769242,0.06339143,3157.3,3155.7,3.16884]
[1720699769243,3.16762,3157.0,3155.7,5.60998]
[1720699769435,3.16783,3156.8,3155.7,5.60998]
[1720699769628,3.16806,3156.6,3155.7,2.4412]
[1720699769830,0.06339143,3156.8,3155.7,2.4412]
[1720699769831,3.16807,3156.5,3155.7,2.4412]
[1720699770463,3.16807,3156.5,3156.4,0.2]
[1720699770631,3.16795,3156.7,3156.4,0.2]
[1720699770831,3.16799,3156.6,3156.4,0.2]
[1720699771951,6.33602,3156.6,3156.4,0.2]
[1720699772161,3.16799,3156.6,3156.4,0.2]
[1720699772355,3.16806,3156.5,3156.4,0.2]
[1720699772667,9.44148334,3157.7,3156.4,0.2]
[1720699772668,3.16765,3157.0,3156.4,0.2]
[1720699773281,3.16742,3157.2,3156.5,2.4974]
[1720699774460,3.1672,3157.4,3156.5,2.4974]
[1720699774461,3.16727,3157.3,3156.5,2.4974]
[1720699774629,3.16736,3157.2,3156.5,2.4974]
[1720699774829,3.1671,3157.5,3156.6,3.71791]
[1720699775058,1.09699553,3157.4,3156.7,0.621531]
[1720699775278,1.09699553,3157.3,3156.7,0.621531]
[1720699775482,3.1671,3157.5,3156.7,0.621531]
[1720699775762,1.09698933,3157.4,3156.7,0.621531]
[1720699776053,7.3,3157.7,3156.9,3.1676]
[1720699776184,3.16651,3158.1,3157.0,3.84235189]
[1720699776330,3.16677,3157.8,3157.0,0.61151471]
[1720699776530,3.16656,3158.0,3157.0,0.61151471]
[1720699776531,3.16686,3157.7,3157.0,0.61151471]
[1720699776755,3.16686,3157.7,3156.8,2.3342]
[1720699777240,3.16686,3157.7,3156.8,5.50193]
[1720699777931,7.3,3158.3,3157.3,3.16724]
[1720699778135,7.3,3158.3,3157.5,5.48773]
[1720699778330,7.3,3158.3,3157.7,3.16684]
[1720699778571,0.1135931,3158.4,3157.8,0.06332702]
[1720699778944,0.1135931,3158.4,3157.9,0.55]
[1720699779187,0.1135931,3158.4,3158.1,3.1664]
[1720699779390,0.1135931,3158.4,3158.3,3.16626]
[1720699779533,0.1135931,3158.4,3158.3,4.083212]
[1720699779866,0.1135931,3158.4,3158.3,0.916952]
[1720699780078,0.1135931,3158.4,3158.1,5.45326]
[1720699780367,0.1135931,3158.4,3158.2,3.71633]
[1720699780878,0.1135931,3158.4,3158.2,0.55]
[1720699781233,0.1135931,3158.4,3158.2,3.71633]
[1720699781557,0.1135931,3158.4,3158.2,4.633292]
[1720699782378,0.1135931,3158.4,3158.3,3.22957468]
[1720699782531,0.1135931,3158.4,3158.3,12.54469468]
[1720699783029,3.16437,3160.2,3159.1,3.16541]
[1720699783235,3.48259,3160.4,3159.3,3.16521]
[1720699783236,0.3184,3160.4,3159.3,3.16521]
[1720699783456,0.3184,3160.4,3159.4,3.71514]
[1720699783457,3.16427,3160.3,3159.4,3.71514]
[1720699783710,3.16427,3160.3,3159.4,0.55]
[1720699783884,3.16457,3160.0,3158.7,2.3734]
[1720699784052,3.48259,3160.4,3158.8,0.61329456]
[1720699784254,3.32071507,3160.8,3159.1,3.16539]
[1720699784255,3.16439,3160.2,3159.1,3.16539]
[1720699784554,1.09598935,3160.1,3159.1,3.22868638]
[1720699785095,3.16439,3160.2,3159.1,3.22868638]
[1720699785296,3.16462,3160.0,3159.2,0.55]
[1720699785502,3.16462,3160.0,3159.1,0.55]
[1720699785792,3.16465,3159.9,3159.1,0.55]
[1720699786166,3.16462,3160.0,3159.1,0.55]
[1720699786668,6.32926,3160.0,3159.1,0.55]
[1720699786888,0.632926,3159.9,3159.1,0.55]
[1720699787711,3.16462,3160.0,3159.1,0.55]
[1720699788390,3.16462,3160.0,3158.7,5.53923]
[1720699788391,3.16483,3159.8,3158.7,5.53923]
[1720699788565,3.16483,3159.8,3158.2,2.870962]
[1720699788566,0.06339143,3159.7,3158.2,4.3145]
[1720699788775,0.3184,3159.9,3158.2,2.3605]
[1720699788970,3.16542,3159.2,3158.3,0.23605]
[1720699789367,3.16495,3159.7,3158.4,0.06331283]
[1720699789567,3.16495,3159.7,3158.6,3.16592]
[1720699789774,3.16495,3159.7,3158.7,0.06330327]
[1720699789956,0.27974914,3159.8,3158.7,3.16585]
[1720699790161,3.16481,3159.8,3158.8,3.16575]
[1720699790697,3.16494,3159.7,3158.5,6.88199]
[1720699790990,3.16505,3159.5,3158.6,3.16592]
[1720699791190,3.16505,3159.5,3158.7,0.55]
[1720699791496,3.16516,3159.4,3158.5,3.16605]
[1720699791655,3.16469,3159.9,3158.8,3.16566]
[1720699791858,3.16469,3159.9,3158.6,0.866605]
[1720699791859,3.16469,3159.9,3158.9,3.2289304]
[1720699792059,6.32942,3159.9,3158.9,3.2289304]
[1720699792368,3.16469,3159.9,3158.9,3.2289304]
[1720699793302,3.1643,3160.3,3159.1,3.16543]
[1720699793467,3.16451,3160.1,3159.2,3.71534]
[1720699793854,6.32906,3160.1,3159.2,0.55]
[1720699794134,3.16431,3160.3,3159.2,3.1653]
[1720699794281,3.16431,3160.3,3159.3,1.23807]
[1720699794282,3.8087882,3160.3,3159.3,1.23807]
[1720699794559,3.16454,3160.1,3159.3,1.23807]
[1720699795461,3.16411,3160.5,3159.4,3.22836435]
[1720699795786,3.16415,3160.4,3159.4,3.16514]
[1720699795967,3.16411,3160.5,3159.5,4.155351]
[1720699796171,3.164,3160.6,3159.6,3.16494]
[1720699796357,3.164,3160.6,3159.7,0.06328706]
[1720699796797,3.16377,3160.8,3159.7,3.22812706]
[1720699797007,3.16362,3161.0,3159.9,2.3194]
[1720699797187,3.16362,3161.0,3160.0,3.2278108]
[1720699797532,3.16328,3161.3,3160.0,3.2278108]
[1720699797859,3.16328,3161.3,3160.2,3.16435]
[1720699798171,3.50584105,3161.9,3159.9,4.2734]
[1720699798172,3.16272,3161.9,3160.7,5.11777]